[Event "December 12 Early 2023"]
[Site "https://www.chess.com"]
[Date "2023.12.12"]
[Round "3"]
[White "Luxama, Jacques Muller"]
[Black "Play, Gilles"]
[Result "0-1"]
[Board "158"]
[TimeControl "180+1"]
[WhiteFideId "11900113"]
[BlackFideId "45130892"]
[WhiteElo "2122"]
[BlackElo "2521"]
[WhiteTeam "HAI"]
[BlackTeam "FRA"]
[WhiteClock "0:00:08"]
[BlackClock "0:01:11"]

1. e4 {[%clk 0:02:45]}  c5 {[%clk 0:02:56]} 2. Nf3 {[%clk 0:02:44]}  Nf6 {[%clk 0:02:53]} 3. Nc3 {[%clk 0:02:41]}  e6 {[%clk 0:02:53]} 4. d4 {[%clk 0:02:40]}  cxd4 {[%clk 0:02:54]} 5. Nxd4 {[%clk 0:02:39]}  Nc6 {[%clk 0:02:52]} 6. Nxc6 {[%clk 0:02:38]}  bxc6 {[%clk 0:02:53]} 7. Bd3 {[%clk 0:02:37]}  d5 {[%clk 0:02:51]} 8. O-O {[%clk 0:02:36]}  Bd6 {[%clk 0:02:42]} 9. Re1 {[%clk 0:02:30]}  Be7 {[%clk 0:02:24]} 10. e5 {[%clk 0:02:28]}  Nd7 {[%clk 0:02:23]} 11. Qg4 {[%clk 0:02:27]}  g6 {[%clk 0:02:22]} 12. Na4 {[%clk 0:02:24]}  Qc7 {[%clk 0:02:19]} 13. Qg3 {[%clk 0:02:05]}  c5 {[%clk 0:02:18]} 14. b3 {[%clk 0:01:44]}  Bb7 {[%clk 0:02:14]} 15. c4 {[%clk 0:01:43]}  d4 {[%clk 0:02:02]} 16. Bh6 {[%clk 0:01:33]}  O-O-O {[%clk 0:01:47]} 17. a3 {[%clk 0:01:32]}  g5 {[%clk 0:01:38]} 18. b4 {[%clk 0:00:56]}  cxb4 {[%clk 0:01:31]} 19. axb4 {[%clk 0:00:55]}  Bxb4 {[%clk 0:01:32]} 20. Reb1 {[%clk 0:00:54]}  a5 {[%clk 0:01:29]} 21. Bxg5 {[%clk 0:00:51]}  Rdg8 {[%clk 0:01:29]} 22. Qh4 {[%clk 0:00:45]}  h6 {[%clk 0:01:27]} 23. Bf6 {[%clk 0:00:41]}  Rxg2+ {[%clk 0:01:25]} 24. Kf1 {[%clk 0:00:41]}  Rhg8 {[%clk 0:01:22]} 25. Ke2 {[%clk 0:00:26]}  Qc6 {[%clk 0:01:18]} 26. Qh3 {[%clk 0:00:20]}  R8g3 {[%clk 0:01:10]} 27. Qxg3 {[%clk 0:00:15]}  Rxg3 {[%clk 0:01:10]} 28. hxg3 {[%clk 0:00:16]}  Qf3+ {[%clk 0:01:10]} 29. Kf1 {[%clk 0:00:16]}  Qxd3+ {[%clk 0:01:11]} 30. Kg1 {[%clk 0:00:16]}  Qf3 {[%clk 0:01:11]} 31. Kf1 {[%clk 0:00:08]}  d3 {[%clk 0:01:11]} 0-1

[Event "December 12 Early 2023"]
[Site "https://www.chess.com"]
[Date "2023.12.12"]
[Round "3"]
[White "Gontcharov, Vladislav"]
[Black "Skaric, Djuro"]
[Result "1-0"]
[Board "164"]
[TimeControl "180+1"]
[WhiteFideId "4123492"]
[BlackFideId "934569"]
[WhiteElo "2651"]
[BlackElo "2405"]
[WhiteTeam "RUS"]
[BlackTeam "SRB"]
[WhiteClock "0:00:14"]
[BlackClock "0:00:00"]

1. d4 {[%clk 0:03:00]}  d6 {[%clk 0:03:00]} 2. e4 {[%clk 0:02:57]}  g6 {[%clk 0:03:01]} 3. Nc3 {[%clk 0:02:56]}  Bg7 {[%clk 0:03:02]} 4. Be3 {[%clk 0:02:56]}  Nf6 {[%clk 0:03:03]} 5. f3 {[%clk 0:02:55]}  O-O {[%clk 0:03:02]} 6. Qd2 {[%clk 0:02:55]}  Nc6 {[%clk 0:03:03]} 7. h4 {[%clk 0:02:51]}  e5 {[%clk 0:03:03]} 8. d5 {[%clk 0:02:50]}  Ne7 {[%clk 0:03:03]} 9. g4 {[%clk 0:02:49]}  h5 {[%clk 0:03:02]} 10. gxh5 {[%clk 0:02:45]}  Nxh5 {[%clk 0:03:02]} 11. O-O-O {[%clk 0:02:43]}  f5 {[%clk 0:03:02]} 12. Nh3 {[%clk 0:02:40]}  f4 {[%clk 0:03:01]} 13. Bf2 {[%clk 0:02:40]}  a6 {[%clk 0:03:01]} 14. Rg1 {[%clk 0:02:24]}  Bd7 {[%clk 0:03:00]} 15. Kb1 {[%clk 0:02:22]}  Bf6 {[%clk 0:02:57]} 16. Ng5 {[%clk 0:02:20]}  Kg7 {[%clk 0:02:57]} 17. Bh3 {[%clk 0:02:10]}  Bxg5 {[%clk 0:02:57]} 18. Bxd7 {[%clk 0:02:09]}  Qxd7 {[%clk 0:02:50]} 19. Rxg5 {[%clk 0:02:08]}  Rf6 {[%clk 0:02:43]} 20. Rdg1 {[%clk 0:02:06]}  Kh7 {[%clk 0:02:38]} 21. R5g4 {[%clk 0:01:58]}  Rg8 {[%clk 0:02:38]} 22. Qe2 {[%clk 0:01:53]}  Rg7 {[%clk 0:02:38]} 23. Qf1 {[%clk 0:01:52]}  b5 {[%clk 0:02:37]} 24. Qg2 {[%clk 0:01:52]}  b4 {[%clk 0:02:36]} 25. Ne2 {[%clk 0:01:45]}  Ng8 {[%clk 0:02:35]} 26. Rg5 {[%clk 0:01:39]}  a5 {[%clk 0:02:28]} 27. Rd1 {[%clk 0:01:37]}  a4 {[%clk 0:02:26]} 28. Ng1 {[%clk 0:01:37]}  Qb5 {[%clk 0:02:22]} 29. Be1 {[%clk 0:01:33]}  b3 {[%clk 0:02:11]} 30. cxb3 {[%clk 0:01:32]}  axb3 {[%clk 0:02:11]} 31. a3 {[%clk 0:01:33]}  c5 {[%clk 0:02:08]} 32. dxc6 {[%clk 0:01:29]}  Qxc6 {[%clk 0:02:07]} 33. Bc3 {[%clk 0:01:28]}  Ng3 {[%clk 0:02:03]} 34. Nh3 {[%clk 0:01:26]}  Ne7 {[%clk 0:01:57]} 35. Qd2 {[%clk 0:01:21]}  Nxe4 {[%clk 0:01:53]} 36. fxe4 {[%clk 0:01:20]}  Qxe4+ {[%clk 0:01:53]} 37. Ka1 {[%clk 0:01:20]}  Nf5 {[%clk 0:01:47]} 38. Rgg1 {[%clk 0:01:15]}  Kh6 {[%clk 0:01:44]} 39. Ng5 {[%clk 0:01:12]}  Qe3 {[%clk 0:01:36]} 40. Qh2 {[%clk 0:01:08]}  Ng3 {[%clk 0:01:33]} 41. Rge1 {[%clk 0:01:01]}  Qc5 {[%clk 0:01:30]} 42. Nf3 {[%clk 0:00:59]}  Re6 {[%clk 0:01:19]} 43. Qd2 {[%clk 0:00:56]}  Nh5 {[%clk 0:01:14]} 44. Ng5 {[%clk 0:00:54]}  Rf6 {[%clk 0:01:11]} 45. Ne4 {[%clk 0:00:54]}  Qc7 {[%clk 0:01:02]} 46. Nxf6 {[%clk 0:00:53]}  Nxf6 {[%clk 0:01:02]} 47. Qg2 {[%clk 0:00:51]}  Kh7 {[%clk 0:00:56]} 48. Qa8 {[%clk 0:00:39]}  Ng4 {[%clk 0:00:48]} 49. Qd5 {[%clk 0:00:35]}  Ne3 {[%clk 0:00:46]} 50. Rxe3 {[%clk 0:00:34]}  fxe3 {[%clk 0:00:46]} 51. Re1 {[%clk 0:00:34]}  Rf7 {[%clk 0:00:43]} 52. Qxb3 {[%clk 0:00:32]}  Rf3 {[%clk 0:00:40]} 53. Qd5 {[%clk 0:00:31]}  Rh3 {[%clk 0:00:37]} 54. h5 {[%clk 0:00:30]}  gxh5 {[%clk 0:00:35]} 55. Qe4+ {[%clk 0:00:30]}  Kh6 {[%clk 0:00:35]} 56. Qf5 {[%clk 0:00:28]}  Rg3 {[%clk 0:00:32]} 57. Qf8+ {[%clk 0:00:27]}  Qg7 {[%clk 0:00:31]} 58. Qxd6+ {[%clk 0:00:27]}  Qg6 {[%clk 0:00:28]} 59. Qxe5 {[%clk 0:00:26]}  h4 {[%clk 0:00:27]} 60. Qh8+ {[%clk 0:00:21]}  Kg5 {[%clk 0:00:27]} 61. Qd8+ {[%clk 0:00:17]}  Kg4 {[%clk 0:00:28]} 62. Qd4+ {[%clk 0:00:16]}  Kh5 {[%clk 0:00:26]} 63. Rxe3 {[%clk 0:00:15]}  Rg1+ {[%clk 0:00:25]} 64. Be1 {[%clk 0:00:14]}  Qg5 {[%clk 0:00:18]} 65. Qd1+ {[%clk 0:00:14]}  Qg4 {[%clk 0:00:18]} 66. Re5+ {[%clk 0:00:13]}  Kg6 {[%clk 0:00:18]} 67. Qd6+ {[%clk 0:00:14]}  Kf7 {[%clk 0:00:00]} 68. Re7+ {[%clk 0:00:14]} 1-0

[Event "December 12 Early 2023"]
[Site "https://www.chess.com"]
[Date "2023.12.12"]
[Round "3"]
[White "Ginzburg, Yakov"]
[Black "Zivic, Dragan"]
[Result "0-1"]
[Board "165"]
[TimeControl "180+1"]
[WhiteFideId "4157176"]
[BlackFideId "904740"]
[WhiteElo "2550"]
[BlackElo "2394"]
[WhiteTeam "RUS"]
[BlackTeam "SRB"]
[WhiteClock "0:00:29"]
[BlackClock "0:01:16"]

1. e4 {[%clk 0:02:59]}  c6 {[%clk 0:03:00]} 2. d4 {[%clk 0:02:59]}  d5 {[%clk 0:03:00]} 3. Nc3 {[%clk 0:03:00]}  dxe4 {[%clk 0:02:59]} 4. Nxe4 {[%clk 0:03:01]}  Bf5 {[%clk 0:02:57]} 5. Ng3 {[%clk 0:03:00]}  Bg6 {[%clk 0:02:57]} 6. h4 {[%clk 0:03:01]}  h6 {[%clk 0:02:56]} 7. Nf3 {[%clk 0:03:02]}  Nd7 {[%clk 0:02:55]} 8. h5 {[%clk 0:03:02]}  Bh7 {[%clk 0:02:54]} 9. Bd3 {[%clk 0:03:03]}  Bxd3 {[%clk 0:02:53]} 10. Qxd3 {[%clk 0:03:04]}  Ngf6 {[%clk 0:02:51]} 11. Bf4 {[%clk 0:03:03]}  Qa5+ {[%clk 0:02:49]} 12. Bd2 {[%clk 0:03:03]}  Qc7 {[%clk 0:02:48]} 13. O-O-O {[%clk 0:03:04]}  e6 {[%clk 0:02:44]} 14. Ne4 {[%clk 0:03:03]}  Nxe4 {[%clk 0:02:42]} 15. Qxe4 {[%clk 0:03:04]}  Nf6 {[%clk 0:02:40]} 16. Qe2 {[%clk 0:03:04]}  Bd6 {[%clk 0:02:27]} 17. Ne5 {[%clk 0:03:04]}  O-O-O {[%clk 0:02:19]} 18. Rh4 {[%clk 0:02:52]}  Bxe5 {[%clk 0:02:17]} 19. dxe5 {[%clk 0:02:51]}  Nd5 {[%clk 0:02:15]} 20. Rg4 {[%clk 0:02:49]}  Rhg8 {[%clk 0:02:12]} 21. c4 {[%clk 0:02:34]}  Ne7 {[%clk 0:02:12]} 22. Rf4 {[%clk 0:02:13]}  Rgf8 {[%clk 0:02:10]} 23. Bb4 {[%clk 0:02:07]}  Rxd1+ {[%clk 0:02:07]} 24. Kxd1 {[%clk 0:01:57]}  c5 {[%clk 0:02:07]} 25. Bc3 {[%clk 0:01:54]}  Nf5 {[%clk 0:02:00]} 26. Kc1 {[%clk 0:01:49]}  Rd8 {[%clk 0:01:56]} 27. g4 {[%clk 0:01:43]}  Nd4 {[%clk 0:01:56]} 28. Qe3 {[%clk 0:01:42]}  Qd7 {[%clk 0:01:49]} 29. b4 {[%clk 0:01:28]}  Nc6 {[%clk 0:01:40]} 30. b5 {[%clk 0:01:21]}  Qd1+ {[%clk 0:01:37]} 31. Kb2 {[%clk 0:01:20]}  Nd4 {[%clk 0:01:35]} 32. Rxf7 {[%clk 0:00:50]}  Qc2+ {[%clk 0:01:32]} 33. Ka3 {[%clk 0:00:37]}  Qb1 {[%clk 0:01:22]} 34. Bxd4 {[%clk 0:00:29]}  Qb4# {[%clk 0:01:16]} 0-1

[Event "December 12 Early 2023"]
[Site "https://www.chess.com"]
[Date "2023.12.12"]
[Round "3"]
[White "Barath1308"]
[Black "Baziuk, Vladyslav"]
[Result "0-1"]
[Board "167"]
[TimeControl "180+1"]
[BlackFideId "34107940"]
[WhiteElo "2371"]
[BlackElo "2512"]
[BlackTeam "UKR"]
[WhiteClock "0:00:00"]
[BlackClock "0:00:03"]

1. b3 {[%clk 0:02:58]}  e5 {[%clk 0:02:59]} 2. Bb2 {[%clk 0:02:58]}  d6 {[%clk 0:02:59]} 3. c4 {[%clk 0:02:58]}  Nd7 {[%clk 0:02:59]} 4. e3 {[%clk 0:02:59]}  g6 {[%clk 0:02:59]} 5. Nf3 {[%clk 0:02:59]}  Bg7 {[%clk 0:02:59]} 6. d4 {[%clk 0:02:59]}  exd4 {[%clk 0:02:55]} 7. Nxd4 {[%clk 0:02:59]}  Ngf6 {[%clk 0:02:55]} 8. Nc3 {[%clk 0:02:55]}  O-O {[%clk 0:02:55]} 9. Be2 {[%clk 0:02:55]}  Re8 {[%clk 0:02:55]} 10. O-O {[%clk 0:02:55]}  Nc5 {[%clk 0:02:54]} 11. Rc1 {[%clk 0:02:53]}  Nce4 {[%clk 0:02:46]} 12. Nxe4 {[%clk 0:02:52]}  Nxe4 {[%clk 0:02:47]} 13. Rc2 {[%clk 0:02:48]}  Bd7 {[%clk 0:02:39]} 14. Qa1 {[%clk 0:02:46]}  a5 {[%clk 0:02:28]} 15. a3 {[%clk 0:02:43]}  Nc5 {[%clk 0:02:26]} 16. Qa2 {[%clk 0:02:38]}  Qe7 {[%clk 0:02:14]} 17. Bf3 {[%clk 0:02:35]}  c6 {[%clk 0:02:11]} 18. Rd1 {[%clk 0:02:30]}  Ne4 {[%clk 0:01:53]} 19. Rf1 {[%clk 0:02:01]}  h5 {[%clk 0:01:39]} 20. Bd1 {[%clk 0:01:40]}  Kh7 {[%clk 0:01:16]} 21. Nf3 {[%clk 0:01:38]}  Nc5 {[%clk 0:01:10]} 22. Bxg7 {[%clk 0:01:36]}  Kxg7 {[%clk 0:01:11]} 23. Qb2+ {[%clk 0:01:29]}  Kg8 {[%clk 0:01:09]} 24. Be2 {[%clk 0:01:25]}  Bf5 {[%clk 0:01:07]} 25. Rd2 {[%clk 0:01:25]}  Ne4 {[%clk 0:01:06]} 26. Rdd1 {[%clk 0:01:19]}  Rad8 {[%clk 0:00:59]} 27. Nd4 {[%clk 0:01:18]}  Bc8 {[%clk 0:00:55]} 28. Bf3 {[%clk 0:01:13]}  Bd7 {[%clk 0:00:47]} 29. b4 {[%clk 0:01:03]}  axb4 {[%clk 0:00:46]} 30. axb4 {[%clk 0:01:03]}  c5 {[%clk 0:00:42]} 31. Nb5 {[%clk 0:00:57]}  Bc6 {[%clk 0:00:38]} 32. Bxe4 {[%clk 0:00:51]}  Qxe4 {[%clk 0:00:37]} 33. f3 {[%clk 0:00:49]}  Qxe3+ {[%clk 0:00:37]} 34. Kh1 {[%clk 0:00:49]}  Bxb5 {[%clk 0:00:33]} 35. cxb5 {[%clk 0:00:48]}  c4 {[%clk 0:00:34]} 36. Qd4 {[%clk 0:00:44]}  Qe6 {[%clk 0:00:22]} 37. h3 {[%clk 0:00:39]}  d5 {[%clk 0:00:22]} 38. Rf2 {[%clk 0:00:29]}  Qd7 {[%clk 0:00:17]} 39. Rfd2 {[%clk 0:00:29]}  Qxb5 {[%clk 0:00:16]} 40. Qf6 {[%clk 0:00:28]}  Rd7 {[%clk 0:00:10]} 41. Qc3 {[%clk 0:00:25]}  Red8 {[%clk 0:00:08]} 42. Rd4 {[%clk 0:00:25]}  Qb6 {[%clk 0:00:07]} 43. Kh2 {[%clk 0:00:21]}  Qd6+ {[%clk 0:00:06]} 44. Kh1 {[%clk 0:00:21]}  Qg3 {[%clk 0:00:07]} 45. Kg1 {[%clk 0:00:20]}  Rd6 {[%clk 0:00:06]} 46. Kh1 {[%clk 0:00:20]}  b5 {[%clk 0:00:07]} 47. Kg1 {[%clk 0:00:19]}  Qg5 {[%clk 0:00:07]} 48. Kh1 {[%clk 0:00:18]}  Ra8 {[%clk 0:00:07]} 49. h4 {[%clk 0:00:15]}  Qf5 {[%clk 0:00:07]} 50. Qd2 {[%clk 0:00:14]}  Rad8 {[%clk 0:00:06]} 51. Qe3 {[%clk 0:00:13]}  Re6 {[%clk 0:00:05]} 52. Qc3 {[%clk 0:00:13]}  Re5 {[%clk 0:00:06]} 53. Kh2 {[%clk 0:00:12]}  Rde8 {[%clk 0:00:06]} 54. R1d2 {[%clk 0:00:11]}  Qf6 {[%clk 0:00:06]} 55. Rd1 {[%clk 0:00:10]}  Re2 {[%clk 0:00:05]} 56. Qa3 {[%clk 0:00:10]}  Qf5 {[%clk 0:00:04]} 57. Qa7 {[%clk 0:00:08]}  Qe5+ {[%clk 0:00:04]} 58. Kh1 {[%clk 0:00:08]}  Re1+ {[%clk 0:00:03]} 59. Rxe1 {[%clk 0:00:07]}  Qxe1+ {[%clk 0:00:04]} 60. Kh2 {[%clk 0:00:07]}  c3 {[%clk 0:00:05]} 61. Qc5 {[%clk 0:00:06]}  Qe5+ {[%clk 0:00:04]} 62. f4 {[%clk 0:00:04]}  Qe3 {[%clk 0:00:03]} 63. Rxd5 {[%clk 0:00:03]}  Qxf4+ {[%clk 0:00:03]} 64. Kh3 {[%clk 0:00:00]}  Re3+ {[%clk 0:00:03]} 0-1

[Event "December 12 Early 2023"]
[Site "https://www.chess.com"]
[Date "2023.12.12"]
[Round "3"]
[White "Evdokimov, Alexey"]
[Black "Andrews, Todd"]
[Result "1/2-1/2"]
[Board "168"]
[TimeControl "180+1"]
[WhiteFideId "24162450"]
[BlackFideId "2012456"]
[WhiteElo "2344"]
[BlackElo "2509"]
[WhiteTeam "RUS"]
[BlackTeam "USA"]
[WhiteClock "0:00:05"]
[BlackClock "0:00:08"]

1. Nf3 {[%clk 0:03:00]}  Nf6 {[%clk 0:02:59]} 2. c4 {[%clk 0:03:01]}  Nc6 {[%clk 0:02:55]} 3. d4 {[%clk 0:02:58]}  e6 {[%clk 0:02:54]} 4. g3 {[%clk 0:02:57]}  d5 {[%clk 0:02:54]} 5. cxd5 {[%clk 0:02:54]}  exd5 {[%clk 0:02:54]} 6. Bg2 {[%clk 0:02:52]}  Bd6 {[%clk 0:02:51]} 7. Nc3 {[%clk 0:02:52]}  O-O {[%clk 0:02:51]} 8. O-O {[%clk 0:02:52]}  Ne7 {[%clk 0:02:51]} 9. Ne5 {[%clk 0:02:51]}  c6 {[%clk 0:02:51]} 10. Bg5 {[%clk 0:02:50]}  Ng6 {[%clk 0:02:49]} 11. e4 {[%clk 0:02:49]}  dxe4 {[%clk 0:02:45]} 12. Nxg6 {[%clk 0:02:13]}  hxg6 {[%clk 0:02:44]} 13. Nxe4 {[%clk 0:02:13]}  Be7 {[%clk 0:02:44]} 14. Nxf6+ {[%clk 0:02:02]}  Bxf6 {[%clk 0:02:44]} 15. Bxf6 {[%clk 0:02:02]}  Qxf6 {[%clk 0:02:45]} 16. d5 {[%clk 0:02:02]}  Rd8 {[%clk 0:02:44]} 17. Qb3 {[%clk 0:02:00]}  c5 {[%clk 0:02:38]} 18. Rad1 {[%clk 0:01:58]}  b6 {[%clk 0:02:36]} 19. Qa4 {[%clk 0:01:40]}  Rd6 {[%clk 0:02:33]} 20. Rfe1 {[%clk 0:01:32]}  Bd7 {[%clk 0:02:31]} 21. Qa6 {[%clk 0:01:29]}  Bg4 {[%clk 0:02:19]} 22. Rd3 {[%clk 0:01:23]}  Rd7 {[%clk 0:02:15]} 23. b3 {[%clk 0:01:10]}  Rad8 {[%clk 0:02:13]} 24. Qc4 {[%clk 0:01:08]}  Qb2 {[%clk 0:02:08]} 25. Qxg4 {[%clk 0:01:06]}  Qxa2 {[%clk 0:02:08]} 26. h4 {[%clk 0:01:01]}  b5 {[%clk 0:02:04]} 27. h5 {[%clk 0:01:00]}  gxh5 {[%clk 0:02:03]} 28. Qxh5 {[%clk 0:01:01]}  c4 {[%clk 0:02:04]} 29. bxc4 {[%clk 0:01:02]}  bxc4 {[%clk 0:02:05]} 30. Rde3 {[%clk 0:01:02]}  Rf8 {[%clk 0:02:00]} 31. Re8 {[%clk 0:00:50]}  Rd8 {[%clk 0:02:00]} 32. Rxf8+ {[%clk 0:00:44]}  Rxf8 {[%clk 0:02:01]} 33. d6 {[%clk 0:00:44]}  c3 {[%clk 0:01:56]} 34. d7 {[%clk 0:00:43]}  Qd2 {[%clk 0:01:39]} 35. Rd1 {[%clk 0:00:38]}  c2 {[%clk 0:01:26]} 36. Rxd2 {[%clk 0:00:38]}  c1=Q+ {[%clk 0:01:27]} 37. Rd1 {[%clk 0:00:38]}  Qc7 {[%clk 0:01:26]} 38. Be4 {[%clk 0:00:26]}  g6 {[%clk 0:01:22]} 39. Bxg6 {[%clk 0:00:15]}  fxg6 {[%clk 0:01:23]} 40. Qxg6+ {[%clk 0:00:16]}  Kh8 {[%clk 0:01:23]} 41. Qh6+ {[%clk 0:00:14]}  Kg8 {[%clk 0:01:23]} 42. Rd6 {[%clk 0:00:15]}  Qc3 {[%clk 0:00:46]} 43. d8=Q {[%clk 0:00:11]}  Qe1+ {[%clk 0:00:44]} 44. Kg2 {[%clk 0:00:09]}  Qxf2+ {[%clk 0:00:44]} 45. Kh3 {[%clk 0:00:10]}  Qf1+ {[%clk 0:00:42]} 46. Kg4 {[%clk 0:00:09]}  Qe2+ {[%clk 0:00:25]} 47. Kh4 {[%clk 0:00:06]}  Qh2+ {[%clk 0:00:24]} 48. Kg5 {[%clk 0:00:06]}  Qxg3+ {[%clk 0:00:24]} 49. Kh5 {[%clk 0:00:06]}  Qf3+ {[%clk 0:00:20]} 50. Kh4 {[%clk 0:00:05]}  Qf2+ {[%clk 0:00:17]} 51. Kh3 {[%clk 0:00:05]}  Qf3+ {[%clk 0:00:17]} 52. Kh4 {[%clk 0:00:04]}  Qf2+ {[%clk 0:00:16]} 53. Kg5 {[%clk 0:00:04]}  Qg3+ {[%clk 0:00:10]} 54. Kh5 {[%clk 0:00:04]}  Qf3+ {[%clk 0:00:08]} 55. Kh4 {[%clk 0:00:05]} 1/2-1/2

[Event "December 12 Early 2023"]
[Site "https://www.chess.com"]
[Date "2023.12.12"]
[Round "3"]
[White "Derjabin, Ilja"]
[Black "Chlpik, Martin"]
[Result "1-0"]
[Board "169"]
[TimeControl "180+1"]
[WhiteFideId "14104768"]
[BlackFideId "14923351"]
[WhiteElo "2503"]
[BlackElo "2329"]
[WhiteTeam "UKR"]
[BlackTeam "SVK"]
[WhiteClock "0:00:06"]
[BlackClock "0:00:00"]

1. d4 {[%clk 0:03:00]}  Nf6 {[%clk 0:02:54]} 2. c4 {[%clk 0:03:00]}  c5 {[%clk 0:02:55]} 3. d5 {[%clk 0:03:00]}  e6 {[%clk 0:02:55]} 4. Nc3 {[%clk 0:03:00]}  exd5 {[%clk 0:02:56]} 5. cxd5 {[%clk 0:03:01]}  d6 {[%clk 0:02:56]} 6. e4 {[%clk 0:03:00]}  g6 {[%clk 0:02:57]} 7. Nge2 {[%clk 0:02:59]}  Bg7 {[%clk 0:02:56]} 8. Ng3 {[%clk 0:02:59]}  O-O {[%clk 0:02:56]} 9. Be2 {[%clk 0:02:59]}  Re8 {[%clk 0:02:55]} 10. O-O {[%clk 0:02:58]}  h5 {[%clk 0:02:55]} 11. Bg5 {[%clk 0:02:57]}  a6 {[%clk 0:02:53]} 12. a4 {[%clk 0:02:56]}  Qc7 {[%clk 0:02:53]} 13. Bxf6 {[%clk 0:02:49]}  Bxf6 {[%clk 0:02:52]} 14. Bxh5 {[%clk 0:02:49]}  gxh5 {[%clk 0:02:45]} 15. Nxh5 {[%clk 0:02:49]}  Bg7 {[%clk 0:02:37]} 16. Ra3 {[%clk 0:02:44]}  Re5 {[%clk 0:02:23]} 17. f4 {[%clk 0:02:36]}  Rxh5 {[%clk 0:02:23]} 18. Qxh5 {[%clk 0:02:37]}  Nd7 {[%clk 0:02:23]} 19. e5 {[%clk 0:01:48]}  dxe5 {[%clk 0:02:23]} 20. Ne4 {[%clk 0:01:48]}  exf4 {[%clk 0:02:18]} 21. d6 {[%clk 0:01:44]}  Qa5 {[%clk 0:02:00]} 22. Ng5 {[%clk 0:01:37]}  Ne5 {[%clk 0:01:48]} 23. Rxf4 {[%clk 0:01:20]}  Qd2 {[%clk 0:01:03]} 24. Rxf7 {[%clk 0:00:58]}  Qd4+ {[%clk 0:00:44]} 25. Rf2 {[%clk 0:00:54]}  Bf5 {[%clk 0:00:40]} 26. h3 {[%clk 0:00:17]}  Bg6 {[%clk 0:00:29]} 27. Qe2 {[%clk 0:00:16]}  Re8 {[%clk 0:00:21]} 28. Re3 {[%clk 0:00:08]}  Qxd6 {[%clk 0:00:06]} 29. Ne4 {[%clk 0:00:08]}  Bxe4 {[%clk 0:00:05]} 30. Rxe4 {[%clk 0:00:08]}  Qg6 {[%clk 0:00:00]} 31. Kh1 {[%clk 0:00:06]} 1-0

[Event "December 12 Early 2023"]
[Site "https://www.chess.com"]
[Date "2023.12.12"]
[Round "3"]
[White "Lehtosaari, Mauri"]
[Black "Umarov, Sabir"]
[Result "1-0"]
[Board "171"]
[TimeControl "180+1"]
[WhiteFideId "501999"]
[BlackFideId "14200538"]
[WhiteElo "2463"]
[BlackElo "2318"]
[WhiteTeam "FIN"]
[BlackTeam "UZB"]
[WhiteClock "0:00:44"]
[BlackClock "0:00:00"]

1. e4 {[%clk 0:03:00]}  c6 {[%clk 0:02:56]} 2. d4 {[%clk 0:03:00]}  d5 {[%clk 0:02:56]} 3. Nc3 {[%clk 0:02:55]}  g6 {[%clk 0:02:49]} 4. Nf3 {[%clk 0:02:33]}  Bg7 {[%clk 0:02:46]} 5. exd5 {[%clk 0:02:33]}  cxd5 {[%clk 0:02:45]} 6. h3 {[%clk 0:02:32]}  Nf6 {[%clk 0:02:45]} 7. Bd3 {[%clk 0:02:31]}  O-O {[%clk 0:02:44]} 8. O-O {[%clk 0:02:31]}  Nc6 {[%clk 0:02:45]} 9. a3 {[%clk 0:02:30]}  Bf5 {[%clk 0:02:42]} 10. Bxf5 {[%clk 0:02:29]}  gxf5 {[%clk 0:02:43]} 11. Ne2 {[%clk 0:02:20]}  Ne4 {[%clk 0:02:41]} 12. c3 {[%clk 0:02:20]}  e6 {[%clk 0:02:41]} 13. Nf4 {[%clk 0:02:20]}  Kh8 {[%clk 0:02:04]} 14. Nd3 {[%clk 0:02:18]}  Rg8 {[%clk 0:02:03]} 15. Bf4 {[%clk 0:02:18]}  Bf6 {[%clk 0:01:42]} 16. Kh1 {[%clk 0:01:46]}  Rg7 {[%clk 0:01:25]} 17. Qe2 {[%clk 0:01:42]}  Qe7 {[%clk 0:01:18]} 18. Nde5 {[%clk 0:01:30]}  Rag8 {[%clk 0:01:16]} 19. Rg1 {[%clk 0:01:29]}  Qe8 {[%clk 0:00:35]} 20. Nxc6 {[%clk 0:00:54]}  bxc6 {[%clk 0:00:25]} 21. Be5 {[%clk 0:00:55]}  Bxe5 {[%clk 0:00:19]} 22. Nxe5 {[%clk 0:00:55]}  f6 {[%clk 0:00:18]} 23. Nd3 {[%clk 0:00:55]}  Rg5 {[%clk 0:00:13]} 24. Kh2 {[%clk 0:00:49]}  Qg6 {[%clk 0:00:12]} 25. f4 {[%clk 0:00:47]}  Rg3 {[%clk 0:00:10]} 26. Raf1 {[%clk 0:00:45]}  Qh6 {[%clk 0:00:00]} 27. Rf3 {[%clk 0:00:44]} 1-0